[Event "DVM U12W 2021"]
[Site "Willingen"]
[Date "2022.08.13"]
[Round "1"]
[White "Guliyeva, Zahra"]
[Black "Sayouf, Rafif"]
[Result "0-1"]
[ECO "C50"]
[WhiteElo "834"]
[BlackElo "1102"]
[Annotator "NA RC COMBH"]
[PlyCount "86"]
[EventDate "2022.08.12"]
[EventType "team-tourn"]
[EventRounds "7"]
[EventCountry "GER"]
[SourceTitle "playchess.com"]
[Source "ChessBase"]
[SourceQuality "1"]
[TimeControl "40/5400+30:1800+30"]

1. e4 {[%emt 0:00:13]} e5 {[%emt 0:00:00]} 2. Nf3 {[%emt 0:00:07]} Nc6 {[%emt 0:00:01]} 3. Bc4 {[%emt 0:00:10]} Bc5 {[%emt 0:00:13]} 4. O-O {[%emt 0:00:06]} Nf6 {[%emt 0:00:13]} 5. Nc3 {[%emt 0:00:11]} O-O {[%emt 0:00:05]} 6. d3 {[%emt 0:00:09]} h6 {[%emt 0:01:07]} 7. Be3 {[%emt 0:02:46]} Bxe3 {[%emt 0:00:21]} 8. fxe3 {[%emt 0:00:24]} d6 {[%emt 0:00:14]} 9. h3 {[%emt 0:01:14]} Bd7 {[%emt 0:02:54]} 10. Nd5 Nxd5 {[%emt 0:00:00]} 11. exd5 {[%emt 0:01:00]} Na5 {[%emt 0:01:57]} 12. b3 {[%emt 0:02:22]} b5 {[%emt 0:00:50]} 13. Qd2 {[%emt 0:00:44]} Nb7 {[%emt 0:00:36]} 14. Qb4 {[%emt 0:01:57]} a5 {[%emt 0:02:45]} 15. Qe1 {[%emt 0:01:25]} bxc4 {[%emt 0:00:30]} 16. bxc4 Nc5 {[%emt 0:00:30]} 17. d4 {[%emt 0:00:42]} exd4 {[%emt 0:00:08]} 18. exd4 {[%emt 0:00:37]} Re8 {[%emt 0:00:29]} 19. Qg3 {[%emt 0:00:23]} Ne4 {[%emt 0:01:06]} 20. Qe1 {[%emt 0:01:30]} Ng5 {[%emt 0:00:43]} 21. Qg3 {[%emt 0:00:59]} Nxf3+ {[%emt 0:00:09]} 22. Rxf3 {[%emt 0:00:04]} Qg5 {[%emt 0:01:26]} 23. Qf2 {[%emt 0:02:08]} Qg6 {[%emt 0:00:29]} 24. Rf1 {[%emt 0:00:17]} f6 {[%emt 0:00:15]} 25. Rg3 {[%emt 0:00:23]} Qf7 {[%emt 0:02:36]} 26. Rd1 {[%emt 0:02:46]} Re7 {[%emt 0:00:20]} 27. Rdd3 {[%emt 0:00:34]} Rae8 {[%emt 0:00:21]} 28. Rd1 {[%emt 0:00:09]} Re2 {[%emt 0:00:20]} 29. Qf4 {[%emt 0:00:29]} g5 {[%emt 0:00:29]} 30. Qf3 {[%emt 0:02:55]} Rxc2 {[%emt 0:00:21]} 31. c5 {[%emt 0:00:17]} dxc5 32. dxc5 {[%emt 0:18:23]} Rxc5 {[%emt 0:03:03]} 33. Qa3 {[%emt 0:00:00]} Rxd5 {[%emt 0:00:24]} 34. Rc1 {[%emt 0:00:00]} Bf5 {[%emt 0:00:54]} 35. Rgc3 {[%emt 0:00:00]} Rd7 {[%emt 0:00:32]} 36. Qxa5 {[%emt 0:00:00]} Qd5 {[%emt 0:00:47]} 37. Rc5 {[%emt 0:00:00]} Qd4+ {[%emt 0:00:09]} 38. Kh1 {[%emt 0:00:00]} Be4 {[%emt 0:00:42]} 39. Rf1 {[%emt 0:00:00]} Qb2 {[%emt 0:00:55]} 40. Rg1 {[%emt 0:00:00]} Rd2 {[%emt 0:00:21]} 41. Qxc7 {[%emt 0:18:30]} Bxg2+ {[%emt 0:30:09]} 42. Rxg2 {[%emt 0:00:07]} Re1+ {[%emt 0:00:13]} 43. Kh2 Rxg2# {[%emt 0:13:21]} 0-1

[Event "DVM U12W 2021"]
[Site "Willingen"]
[Date "2022.08.13"]
[Round "1"]
[White "Piffczyk, Sandra"]
[Black "Daaboul, Dima"]
[Result "0-1"]
[ECO "B00"]
[WhiteElo "704"]
[BlackElo "882"]
[Annotator "NA RC COMBH"]
[PlyCount "80"]
[EventDate "2022.08.12"]
[EventType "team-tourn"]
[EventRounds "7"]
[EventCountry "GER"]
[SourceTitle "playchess.com"]
[Source "ChessBase"]
[SourceQuality "1"]
[TimeControl "40/5400+30:1800+30"]

1. e4 {[%emt 0:00:08]} b6 {[%emt 0:00:00]} 2. Nf3 {[%emt 0:00:10]} Bb7 {[%emt 0:00:09]} 3. Nc3 {[%emt 0:00:24]} Nf6 {[%emt 0:00:51]} 4. Bd3 {[%emt 0:00:18]} e6 {[%emt 0:00:23]} 5. O-O {[%emt 0:00:48]} Bb4 {[%emt 0:00:49]} 6. Qe1 {[%emt 0:02:02]} O-O {[%emt 0:01:43]} 7. a3 {[%emt 0:01:39]} Bd6 {[%emt 0:00:46]} 8. Bb5 Nc6 {[%emt 0:13:58]} 9. d3 {[%emt 0:06:10]} h6 {[%emt 0:00:00]} 10. Be3 {[%emt 0:00:41]} Ne5 {[%emt 0:00:00]} 11. Nxe5 {[%emt 0:00:15]} Bxe5 {[%emt 0:00:00]} 12. f3 {[%emt 0:02:41]} Qe7 {[%emt 0:00:00]} 13. Bf2 {[%emt 0:03:00]} Qd6 {[%emt 0:00:00]} 14. Bg3 {[%emt 0:05:48]} Qc5+ {[%emt 0:00:00]} 15. Qf2 {[%emt 0:00:43]} Bd4 {[%emt 0:01:21]} 16. Qxd4 {[%emt 0:00:10]} Qxd4+ {[%emt 0:01:35]} 17. Bf2 {[%emt 0:00:49]} Qe5 {[%emt 0:00:57]} 18. Bg3 {[%emt 0:00:45]} Qg5 {[%emt 0:02:36]} 19. Ne2 Qxb5 {[%emt 0:38:42]} 20. Rab1 {[%emt 0:04:05]} Qc5+ {[%emt 0:00:00]} 21. Bf2 {[%emt 0:00:22]} Qxc2 {[%emt 0:00:00]} 22. Nc3 {[%emt 0:01:12]} Ba6 {[%emt 0:00:00]} 23. Rfe1 {[%emt 0:00:46]} Bxd3 {[%emt 0:00:00]} 24. Bd4 {[%emt 0:01:55]} Qb3 {[%emt 0:00:00]} 25. Rbd1 {[%emt 0:01:55]} Qc4 {[%emt 0:00:00]} 26. Be3 {[%emt 0:02:18]} d5 {[%emt 0:00:00]} 27. exd5 {[%emt 0:01:17]} exd5 {[%emt 0:00:00]} 28. Bf2 {[%emt 0:01:23]} Rae8 {[%emt 0:00:00]} 29. Rxe8 {[%emt 0:00:12]} Rxe8 {[%emt 0:00:00]} 30. h3 {[%emt 0:01:08]} d4 {[%emt 0:00:00]} 31. Ne4 {[%emt 0:00:53]} Bxe4 {[%emt 0:00:00]} 32. fxe4 {[%emt 0:00:45]} Rxe4 {[%emt 0:00:00]} 33. Rf1 {[%emt 0:00:47]} Re2 {[%emt 0:00:00]} 34. Bg3 {[%emt 0:00:32]} Qd5 {[%emt 0:00:00]} 35. Rf3 d3 {[%emt 0:20:46]} 36. Bf4 {[%emt 0:02:20]} Qd4+ {[%emt 0:00:00]} 37. Kh2 {[%emt 0:00:00]} Qe4 {[%emt 0:00:00]} 38. Kg3 {[%emt 0:00:00]} Nh5+ {[%emt 0:00:00]} 39. Kh2 {[%emt 0:00:00]} Qxf3 {[%emt 0:00:00]} 40. Bg3 {[%emt 0:00:00]} Qxg2# {[%emt 0:00:00]} 0-1

[Event "DVM U12W 2021"]
[Site "Willingen"]
[Date "2022.08.13"]
[Round "2"]
[White "Müller, Cosima"]
[Black "Gerlach, Lorena"]
[Result "1-0"]
[ECO "C11"]
[WhiteElo "1355"]
[BlackElo "1120"]
[Annotator "NA RC COMBH"]
[PlyCount "117"]
[EventDate "2022.08.12"]
[EventType "team-tourn"]
[EventRounds "7"]
[EventCountry "GER"]
[SourceTitle "playchess.com"]
[Source "ChessBase"]
[SourceQuality "1"]
[TimeControl "40/5400+30:1800+30"]

1. e4 {[%emt 0:00:05]} e6 {[%emt 0:00:05]} 2. d4 {[%emt 0:00:04]} d5 {[%emt 0:00:06]} 3. Nc3 {[%emt 0:00:10]} Nf6 {[%emt 0:00:09]} 4. e5 {[%emt 0:00:07]} Nfd7 {[%emt 0:00:08]} 5. Nce2 {[%emt 0:00:08]} c5 {[%emt 0:00:59]} 6. c3 {[%emt 0:00:07]} Nc6 {[%emt 0:00:11]} 7. f4 {[%emt 0:00:37]} a6 {[%emt 0:01:34]} 8. a3 {[%emt 0:02:13]} cxd4 {[%emt 0:01:37]} 9. cxd4 {[%emt 0:00:24]} Qc7 {[%emt 0:01:54]} 10. Nf3 {[%emt 0:01:31]} Be7 {[%emt 0:00:57]} 11. Nc3 {[%emt 0:03:34]} O-O {[%emt 0:03:23]} 12. Bd3 {[%emt 0:01:16]} h6 {[%emt 0:04:33]} 13. O-O {[%emt 0:00:51]} Nb6 {[%emt 0:03:38]} 14. a4 {[%emt 0:04:06]} Nb4 {[%emt 0:04:04]} 15. a5 {[%emt 0:01:43]} Nxd3 {[%emt 0:03:37]} 16. axb6 {[%emt 0:00:49]} Nxb2 {[%emt 0:00:33]} 17. bxc7 {[%emt 0:01:22]} Nxd1 {[%emt 0:00:07]} 18. Rxd1 {[%emt 0:00:09]} Bd7 {[%emt 0:01:05]} 19. Ba3 {[%emt 0:01:18]} Bxa3 {[%emt 0:01:20]} 20. Rxa3 {[%emt 0:00:06]} Rfc8 {[%emt 0:00:29]} 21. Na4 {[%emt 0:03:49]} Rxc7 {[%emt 0:01:28]} 22. Nb6 {[%emt 0:00:18]} Rd8 {[%emt 0:00:37]} 23. Nxd7 {[%emt 0:00:15]} Rdxd7 {[%emt 0:00:14]} 24. Nd2 {[%emt 0:00:22]} Kh7 {[%emt 0:04:44]} 25. Nb3 {[%emt 0:00:59]} Rc3 {[%emt 0:01:27]} 26. Rda1 {[%emt 0:00:14]} Rdc7 {[%emt 0:01:13]} 27. Nc5 {[%emt 0:01:39]} Rc4 {[%emt 0:04:11]} 28. Rd3 {[%emt 0:00:56]} Kg6 {[%emt 0:01:47]} 29. Rb1 {[%emt 0:00:35]} Kf5 {[%emt 0:01:04]} 30. Nxb7 {[%emt 0:10:59]} Kxf4 {[%emt 0:00:49]} 31. Nc5 {[%emt 0:02:38]} a5 {[%emt 0:06:33]} 32. Rf1+ {[%emt 0:02:21]} Kg5 {[%emt 0:00:44]} 33. Rg3+ {[%emt 0:00:39]} Kh5 {[%emt 0:00:12]} 34. Nb3 {[%emt 0:01:43]} a4 {[%emt 0:00:17]} 35. Nd2 {[%emt 0:03:36]} Rc1 {[%emt 0:00:33]} 36. Ra3 {[%emt 0:02:17]} Rxf1+ {[%emt 0:00:17]} 37. Kxf1 {[%emt 0:00:23]} Ra7 {[%emt 0:03:38]} 38. Ke2 {[%emt 0:01:34]} g5 {[%emt 0:00:45]} 39. Kd3 {[%emt 0:00:38]} Kg6 {[%emt 0:00:49]} 40. Nb1 {[%emt 0:00:16]} f5 {[%emt 0:01:27]} 41. Nc3 {[%emt 0:30:13]} f4 {[%emt 0:30:57]} 42. Rxa4 {[%emt 0:00:19]} Rxa4 {[%emt 0:00:15]} 43. Nxa4 {[%emt 0:00:06]} g4 {[%emt 0:00:12]} 44. Ke2 {[%emt 0:00:32]} Kf5 {[%emt 0:00:09]} 45. Nc5 {[%emt 0:00:12]} h5 {[%emt 0:00:17]} 46. h3 {[%emt 0:00:25]} f3+ {[%emt 0:03:04]} 47. Kf2 {[%emt 0:00:24]} gxh3 {[%emt 0:07:20]} 48. gxh3 {[%emt 0:00:10]} Kf4 {[%emt 0:00:13]} 49. Nxe6+ {[%emt 0:00:06]} Ke4 {[%emt 0:00:06]} 50. Ng5+ {[%emt 0:00:22]} Kxd4 {[%emt 0:00:03]} 51. e6 {[%emt 0:00:09]} Kc3 {[%emt 0:00:04]} 52. Nxf3 {[%emt 0:00:14]} d4 {[%emt 0:00:16]} 53. e7 {[%emt 0:00:05]} d3 {[%emt 0:00:04]} 54. e8=Q {[%emt 0:00:09]} h4 {[%emt 0:00:10]} 55. Qc6+ {[%emt 0:00:07]} Kb2 {[%emt 0:00:07]} 56. Ke3 {[%emt 0:00:10]} d2 {[%emt 0:00:09]} 57. Kxd2 {[%emt 0:00:07]} Kb3 {[%emt 0:00:05]} 58. Qc3+ {[%emt 0:00:08]} Ka4 {[%emt 0:00:05]} 59. Qb2 {[%emt 0:00:06]} 1-0

[Event "DVM U12W 2021"]
[Site "Willingen"]
[Date "2022.08.13"]
[Round "2"]
[White "Ramakrishnan, Veda"]
[Black "Mehner, Clara"]
[Result "0-1"]
[ECO "C01"]
[WhiteElo "1333"]
[BlackElo "1150"]
[Annotator "NA RC COMBH"]
[PlyCount "46"]
[EventDate "2022.08.12"]
[EventType "team-tourn"]
[EventRounds "7"]
[EventCountry "GER"]
[SourceTitle "playchess.com"]
[Source "ChessBase"]
[SourceQuality "1"]
[TimeControl "40/5400+30:1800+30"]

1. e4 {[%emt 0:00:00]} e6 {[%emt 0:00:05]} 2. d4 {[%emt 0:00:06]} d5 {[%emt 0:00:06]} 3. exd5 {[%emt 0:00:09]} exd5 {[%emt 0:00:08]} 4. Bf4 {[%emt 0:01:23]} Bd6 {[%emt 0:01:53]} 5. Bxd6 {[%emt 0:00:36]} Qxd6 {[%emt 0:00:13]} 6. Nc3 {[%emt 0:00:50]} Bf5 {[%emt 0:01:11]} 7. Bd3 {[%emt 0:00:27]} Ne7 {[%emt 0:00:48]} 8. Nf3 {[%emt 0:01:37]} Qe6+ {[%emt 0:03:00]} 9. Qe2 {[%emt 0:01:14]} Bxd3 {[%emt 0:01:15]} 10. Qxe6 {[%emt 0:01:10]} fxe6 {[%emt 0:00:15]} 11. cxd3 {[%emt 0:00:09]} O-O {[%emt 0:01:18]} 12. O-O {[%emt 0:00:08]} Nbc6 {[%emt 0:01:18]} 13. Rfe1 {[%emt 0:00:31]} Rf6 {[%emt 0:00:59]} 14. Nb5 {[%emt 0:01:23]} Rc8 {[%emt 0:01:20]} 15. Ne5 {[%emt 0:02:05]} a6 {[%emt 0:01:38]} 16. Nc3 {[%emt 0:00:53]} Nxd4 {[%emt 0:01:33]} 17. Rac1 {[%emt 0:01:20]} Ng6 {[%emt 0:04:06]} 18. Nd7 {[%emt 0:00:52]} Rf5 {[%emt 0:04:41]} 19. Nc5 {[%emt 0:00:46]} Nf4 {[%emt 0:02:05]} 20. Rcd1 {[%emt 0:04:11]} Rg5 {[%emt 0:05:09]} 21. Kh1 {[%emt 0:04:32]} Rxg2 {[%emt 0:04:40]} 22. Nxe6 {[%emt 0:01:25]} Nf3 {[%emt 0:04:35]} 23. Nxf4 {[%emt 0:04:44]} Rxh2# {[%emt 0:00:09]} 0-1

[Event "DVM U12W 2021"]
[Site "Willingen"]
[Date "2022.08.13"]
[Round "2"]
[White "Schuelke, Rosalie"]
[Black "Striebeck, Liv"]
[Result "1-0"]
[ECO "C78"]
[WhiteElo "1297"]
[BlackElo "1003"]
[Annotator "NA RC COMBH"]
[PlyCount "55"]
[EventDate "2022.08.12"]
[EventType "team-tourn"]
[EventRounds "7"]
[EventCountry "GER"]
[SourceTitle "playchess.com"]
[Source "ChessBase"]
[SourceQuality "1"]
[TimeControl "40/5400+30:1800+30"]

1. e4 {[%emt 0:00:02]} e5 {[%emt 0:00:07]} 2. Nf3 {[%emt 0:00:08]} Nc6 {[%emt 0:00:10]} 3. Bb5 {[%emt 0:00:13]} Bd6 {[%emt 0:03:20]} 4. O-O {[%emt 0:00:37]} Nf6 {[%emt 0:01:53]} 5. Re1 {[%emt 0:00:52]} a6 {[%emt 0:02:34]} 6. Ba4 {[%emt 0:00:19]} b5 {[%emt 0:01:17]} 7. Bb3 {[%emt 0:01:17]} O-O {[%emt 0:01:12]} 8. c3 {[%emt 0:00:13]} Bb7 {[%emt 0:01:31]} 9. d4 {[%emt 0:00:44]} Re8 {[%emt 0:06:50]} 10. Nbd2 {[%emt 0:03:37]} exd4 {[%emt 0:12:32]} 11. cxd4 {[%emt 0:01:17]} Bb4 {[%emt 0:01:10]} 12. e5 {[%emt 0:02:00]} Bxd2 {[%emt 0:07:18]} 13. Qxd2 {[%emt 0:07:11]} Ng4 {[%emt 0:02:04]} 14. Qd3 {[%emt 0:01:28]} Nb4 {[%emt 0:03:00]} 15. Qf5 {[%emt 0:02:07]} Nh6 {[%emt 0:01:19]} 16. Bxh6 {[%emt 0:00:09]} Bd5 {[%emt 0:06:50]} 17. Bxd5 {[%emt 0:01:06]} Nxd5 {[%emt 0:00:08]} 18. Ng5 {[%emt 0:00:43]} Qxg5 {[%emt 0:04:21]} 19. Qxg5 {[%emt 0:03:54]} g6 {[%emt 0:00:22]} 20. f4 {[%emt 0:01:34]} Re7 {[%emt 0:05:38]} 21. f5 {[%emt 0:00:41]} Rae8 {[%emt 0:02:03]} 22. f6 {[%emt 0:01:58]} Re6 {[%emt 0:00:40]} 23. Bg7 {[%emt 0:00:33]} d6 {[%emt 0:02:51]} 24. Qh6 {[%emt 0:03:06]} Nxf6 {[%emt 0:03:54]} 25. Bxf6 {[%emt 0:01:04]} Rxf6 {[%emt 0:00:05]} 26. exf6 {[%emt 0:00:09]} Rxe1+ {[%emt 0:00:07]} 27. Rxe1 {[%emt 0:00:07]} d5 {[%emt 0:00:19]} 28. Qg7# {[%emt 0:00:10]} 1-0

[Event "DVM U12W 2021"]
[Site "Willingen"]
[Date "2022.08.13"]
[Round "2"]
[White "Mo, Keyou"]
[Black "Leicher, Anna"]
[Result "1-0"]
[ECO "C50"]
[WhiteElo "1264"]
[BlackElo "1252"]
[Annotator "NA RC COMBH"]
[PlyCount "133"]
[EventDate "2022.08.12"]
[EventType "team-tourn"]
[EventRounds "7"]
[EventCountry "GER"]
[SourceTitle "playchess.com"]
[Source "ChessBase"]
[SourceQuality "1"]
[TimeControl "40/5400+30:1800+30"]

1. e4 {[%emt 0:00:06]} e5 {[%emt 0:00:00]} 2. Nf3 {[%emt 0:00:22]} Nc6 {[%emt 0:00:00]} 3. Bc4 {[%emt 0:00:17]} Bc5 {[%emt 0:00:14]} 4. Nc3 {[%emt 0:00:32]} Nf6 {[%emt 0:00:28]} 5. d3 {[%emt 0:00:33]} h6 {[%emt 0:00:30]} 6. h3 {[%emt 0:00:29]} O-O {[%emt 0:01:44]} 7. Be3 {[%emt 0:00:13]} Bb6 {[%emt 0:00:18]} 8. Qd2 {[%emt 0:01:28]} d6 {[%emt 0:01:30]} 9. O-O-O {[%emt 0:08:54]} Re8 {[%emt 0:01:11]} 10. g4 {[%emt 0:01:37]} Nh7 {[%emt 0:00:52]} 11. g5 {[%emt 0:04:05]} Bxe3 {[%emt 0:00:14]} 12. Qxe3 {[%emt 0:00:34]} Nxg5 {[%emt 0:02:08]} 13. h4 {[%emt 0:02:11]} Nxf3 {[%emt 0:00:10]} 14. Qxf3 {[%emt 0:00:20]} Be6 {[%emt 0:04:41]} 15. Bxe6 {[%emt 0:00:16]} Rxe6 {[%emt 0:00:26]} 16. Nd5 {[%emt 0:01:12]} Nd4 {[%emt 0:01:03]} 17. Qe3 {[%emt 0:01:53]} Qd7 {[%emt 0:01:13]} 18. c3 {[%emt 0:05:46]} Nb5 {[%emt 0:01:50]} 19. a4 {[%emt 0:01:12]} c6 {[%emt 0:02:05]} 20. Nb4 {[%emt 0:03:09]} c5 {[%emt 0:01:03]} 21. Nd5 {[%emt 0:00:43]} Nc7 {[%emt 0:04:30]} 22. f4 {[%emt 0:05:16]} Qc6 {[%emt 0:03:34]} 23. Nxc7 {[%emt 0:00:27]} Qxc7 {[%emt 0:01:05]} 24. f5 {[%emt 0:02:28]} Rf6 {[%emt 0:01:39]} 25. Rhg1 {[%emt 0:04:47]} Kh7 {[%emt 0:01:25]} 26. Qg3 {[%emt 0:00:42]} Rg8 {[%emt 0:02:15]} 27. Kc2 {[%emt 0:02:18]} Qd7 {[%emt 0:02:01]} 28. b3 {[%emt 0:01:02]} g6 {[%emt 0:03:45]} 29. Qg4 {[%emt 0:03:21]} b5 {[%emt 0:00:44]} 30. fxg6+ {[%emt 0:01:26]} Rfxg6 {[%emt 0:00:13]} 31. Qxd7 {[%emt 0:00:14]} Rxg1 {[%emt 0:00:11]} 32. Qxf7+ {[%emt 0:00:21]} R8g7 {[%emt 0:00:24]} 33. Qf5+ {[%emt 0:00:22]} Kh8 {[%emt 0:00:08]} 34. Rxg1 {[%emt 0:00:09]} Rxg1 {[%emt 0:00:34]} 35. Qf2 {[%emt 0:00:22]} Ra1 {[%emt 0:00:26]} 36. Kb2 {[%emt 0:00:32]} Rh1 {[%emt 0:01:14]} 37. Kc2 {[%emt 0:00:15]} Ra1 {[%emt 0:00:05]} 38. Kb2 {[%emt 0:00:12]} Rd1 {[%emt 0:01:24]} 39. Qe2 {[%emt 0:00:40]} Rh1 {[%emt 0:00:21]} 40. axb5 {[%emt 0:00:20]} Rxh4 {[%emt 0:00:14]} 41. Qf2 {[%emt 0:30:20]} Rf4 {[%emt 0:30:41]} 42. Qh2 {[%emt 0:00:37]} Kh7 {[%emt 0:00:28]} 43. c4 {[%emt 0:01:15]} Rg4 {[%emt 0:00:31]} 44. Qh3 {[%emt 0:01:03]} Rg6 {[%emt 0:00:11]} 45. Qd7+ {[%emt 0:00:18]} Rg7 {[%emt 0:00:18]} 46. Qxd6 {[%emt 0:00:36]} Rg2+ {[%emt 0:00:09]} 47. Kc3 {[%emt 0:00:15]} h5 {[%emt 0:00:36]} 48. Qxe5 {[%emt 0:00:26]} Kh6 {[%emt 0:00:17]} 49. d4 {[%emt 0:00:48]} cxd4+ {[%emt 0:00:08]} 50. Kxd4 {[%emt 0:01:18]} Rg5 {[%emt 0:00:41]} 51. Qh8+ {[%emt 0:00:33]} Kg6 {[%emt 0:00:29]} 52. c5 {[%emt 0:00:40]} Rg4 {[%emt 0:00:12]} 53. Qg8+ {[%emt 0:00:16]} Kh6 {[%emt 0:00:22]} 54. Qf8+ {[%emt 0:00:20]} Kh7 {[%emt 0:00:17]} 55. c6 {[%emt 0:00:36]} h4 {[%emt 0:00:18]} 56. c7 {[%emt 0:00:32]} Rg8 {[%emt 0:00:20]} 57. Qxg8+ {[%emt 0:00:12]} Kxg8 {[%emt 0:00:06]} 58. c8=Q+ {[%emt 0:00:17]} Kg7 {[%emt 0:00:08]} 59. Qg4+ {[%emt 0:00:13]} Kf7 {[%emt 0:00:07]} 60. Qxh4 {[%emt 0:00:08]} Ke6 {[%emt 0:01:24]} 61. Qh6+ {[%emt 0:00:50]} Kd7 {[%emt 0:00:11]} 62. Ke5 {[%emt 0:00:12]} Kc7 {[%emt 0:00:06]} 63. Kd5 {[%emt 0:00:14]} a5 {[%emt 0:00:13]} 64. Qc6+ {[%emt 0:00:07]} Kb8 {[%emt 0:00:06]} 65. Qd7 {[%emt 0:00:27]} a4 {[%emt 0:00:07]} 66. Kc6 {[%emt 0:00:12]} a3 67. Qb7# {[%emt 0:08:58]} 1-0

[Event "DVM U12W 2021"]
[Site "Willingen"]
[Date "2022.08.13"]
[Round "2"]
[White "Eger, Nora"]
[Black "Achilles, Rosa"]
[Result "1-0"]
[ECO "A07"]
[WhiteElo "1248"]
[BlackElo "1026"]
[Annotator "NA RC COMBH"]
[PlyCount "131"]
[EventDate "2022.08.12"]
[EventType "team-tourn"]
[EventRounds "7"]
[EventCountry "GER"]
[SourceTitle "playchess.com"]
[Source "ChessBase"]
[SourceQuality "1"]
[TimeControl "40/5400+30:1800+30"]

1. Nf3 {[%emt 0:00:03]} Nf6 {[%emt 0:00:14]} 2. g3 {[%emt 0:00:12]} d5 {[%emt 0:00:32]} 3. Bg2 {[%emt 0:01:42]} g6 {[%emt 0:00:06]} 4. d3 {[%emt 0:00:23]} Bg7 {[%emt 0:00:44]} 5. O-O {[%emt 0:00:18]} O-O {[%emt 0:00:14]} 6. c4 {[%emt 0:01:09]} c6 {[%emt 0:01:01]} 7. cxd5 {[%emt 0:05:27]} cxd5 {[%emt 0:01:36]} 8. d4 {[%emt 0:02:02]} Nc6 {[%emt 0:02:19]} 9. e3 {[%emt 0:04:31]} Bg4 {[%emt 0:01:33]} 10. Nc3 {[%emt 0:06:43]} Ne4 {[%emt 0:01:39]} 11. Qc2 {[%emt 0:04:44]} Nf6 {[%emt 0:01:52]} 12. a3 {[%emt 0:03:17]} Re8 {[%emt 0:04:13]} 13. Ne5 {[%emt 0:07:59]} Bf5 {[%emt 0:03:00]} 14. Nxc6 {[%emt 0:10:02]} bxc6 {[%emt 0:04:58]} 15. Qd2 {[%emt 0:04:05]} e5 {[%emt 0:03:15]} 16. Re1 {[%emt 0:05:17]} Bh6 {[%emt 0:01:38]} 17. Qd1 {[%emt 0:04:40]} e4 {[%emt 0:02:11]} 18. Bd2 {[%emt 0:02:45]} Nd7 {[%emt 0:01:47]} 19. Rc1 {[%emt 0:05:14]} Be6 {[%emt 0:03:58]} 20. Na4 {[%emt 0:02:04]} Bf8 {[%emt 0:02:24]} 21. Rxc6 {[%emt 0:02:23]} Nf6 {[%emt 0:06:03]} 22. Rc1 {[%emt 0:02:03]} Rb8 {[%emt 0:02:09]} 23. b4 {[%emt 0:04:46]} Rc8 {[%emt 0:02:55]} 24. Rxc8 {[%emt 0:01:50]} Qxc8 {[%emt 0:00:56]} 25. Qc1 {[%emt 0:00:46]} h5 {[%emt 0:03:26]} 26. Qxc8 {[%emt 0:01:14]} Rxc8 {[%emt 0:00:08]} 27. Nc5 {[%emt 0:00:23]} Bf5 {[%emt 0:01:40]} 28. Rc1 {[%emt 0:02:41]} Kh7 {[%emt 0:02:25]} 29. a4 {[%emt 0:00:49]} Nd7 {[%emt 0:01:42]} 30. a5 {[%emt 0:02:31]} Kh6 {[%emt 0:02:15]} 31. Rb1 {[%emt 0:01:57]} g5 {[%emt 0:01:44]} 32. Nxd7 {[%emt 0:00:50]} Bxd7 {[%emt 0:00:15]} 33. b5 {[%emt 0:00:49]} Rb8 {[%emt 0:00:30]} 34. b6 {[%emt 0:01:03]} a6 {[%emt 0:00:23]} 35. Bf1 {[%emt 0:00:31]} Bd6 {[%emt 0:01:57]} 36. Bxa6 {[%emt 0:00:31]} f6 {[%emt 0:00:50]} 37. Bf1 {[%emt 0:00:36]} Bc6 {[%emt 0:00:21]} 38. a6 {[%emt 0:00:37]} g4 {[%emt 0:00:37]} 39. a7 {[%emt 0:01:00]} Ra8 {[%emt 0:00:16]} 40. b7 {[%emt 0:02:17]} Rxa7 {[%emt 0:00:12]} 41. b8=Q {[%emt 0:30:23]} Bxb8 {[%emt 0:30:18]} 42. Rxb8 {[%emt 0:00:10]} Ra1 {[%emt 0:00:27]} 43. Kg2 {[%emt 0:01:06]} Bd7 {[%emt 0:01:59]} 44. Rd8 {[%emt 0:01:22]} Bf5 {[%emt 0:00:43]} 45. Rxd5 {[%emt 0:02:36]} Kg6 {[%emt 0:00:53]} 46. Bb4 {[%emt 0:02:05]} Be6 {[%emt 0:00:41]} 47. Rd8 {[%emt 0:00:00]} Bb3 {[%emt 0:00:00]} 48. Be2 {[%emt 0:00:00]} Kg5 {[%emt 0:00:00]} 49. d5 {[%emt 0:00:00]} h4 {[%emt 0:00:00]} 50. gxh4+ {[%emt 0:00:00]} Kxh4 {[%emt 0:00:00]} 51. Rh8+ {[%emt 0:00:00]} Kg5 {[%emt 0:00:00]} 52. d6 {[%emt 0:00:00]} Ra7 {[%emt 0:00:00]} 53. Rc8 {[%emt 0:00:00]} Ba4 {[%emt 0:00:00]} 54. Rc5+ {[%emt 0:00:00]} f5 {[%emt 0:00:00]} 55. Bb5 {[%emt 0:00:00]} Bxb5 {[%emt 0:00:00]} 56. Rxb5 {[%emt 0:00:00]} Rd7 {[%emt 0:00:00]} 57. Rb8 {[%emt 0:00:00]} Kf6 {[%emt 0:00:00]} 58. Kg3 {[%emt 0:00:00]} Ke6 {[%emt 0:00:00]} 59. Kf4 {[%emt 0:00:00]} Rxd6 {[%emt 0:00:00]} 60. Bxd6 {[%emt 0:00:00]} Kxd6 {[%emt 0:00:00]} 61. Kxf5 {[%emt 0:00:11]} Kc7 {[%emt 0:00:00]} 62. Re8 {[%emt 0:00:16]} Kd7 {[%emt 0:00:00]} 63. Rxe4 {[%emt 0:00:10]} Kd6 {[%emt 0:00:00]} 64. Kxg4 {[%emt 0:00:13]} Kd5 {[%emt 0:00:00]} 65. Kf5 {[%emt 0:00:14]} Kd6 {[%emt 0:00:00]} 66. h4 {[%emt 0:00:04]} 1-0

[Event "DVM U12W 2021"]
[Site "Willingen"]
[Date "2022.08.13"]
[Round "2"]
[White "Prokscha, Charlotte"]
[Black "Wagner, Cosima Thien-An"]
[Result "1/2-1/2"]
[WhiteElo "1241"]
[BlackElo "1301"]
[Annotator "NA RC COMBH"]
[PlyCount "22"]
[EventDate "2022.08.12"]
[EventType "team-tourn"]
[EventRounds "7"]
[EventCountry "GER"]
[SourceTitle "playchess.com"]
[Source "ChessBase"]
[SourceQuality "1"]
[TimeControl "40/5400+30:1800+30"]

1. c4 {[%emt 0:00:01]} g6 {[%emt 0:00:16]} 2. Nc3 {[%emt 0:00:09]} Bg7 {[%emt 0:00:08]} 3. Nf3 {[%emt 0:00:19]} Nf6 {[%emt 0:00:11]} 4. d3 {[%emt 0:00:17]} d5 {[%emt 0:00:12]} 5. g3 {[%emt 0:01:53]} dxc4 {[%emt 0:00:18]} 6. dxc4 {[%emt 0:00:07]} Qxd1+ {[%emt 0:00:21]} 7. Nxd1 {[%emt 0:00:10]} Ne4 {[%emt 0:01:39]} 8. Rb1 {[%emt 0:01:27]} Bf5 {[%emt 0:00:46]} 9. Ne3 {[%emt 0:05:02]} Nxg3 {[%emt 0:01:09]} 10. Nxf5 {[%emt 0:00:26]} Nxf5 {[%emt 0:00:08]} 11. Bf4 {[%emt 0:00:49]} Nd6 {[%emt 0:00:53]} 1/2-1/2